BODY,BODY NAME,DATE,TRANSACTION NUMBER, AMOUNT ,SUPPLIER NAME,SUPPLIER ID,EXPENSE AREA,EXPENSE TYPE,EXPENSE CODE
http://statistics.data.gov.uk/id/local-authority/12UE,Huntingdonshire District Council,05/12/2013,139453,1944,Elephant & Castle Freehouse & Motel,CR401969,Accommodation For Homeless,Bed & Breakfast Payment,818
http://statistics.data.gov.uk/id/local-authority/12UE,Huntingdonshire District Council,19/12/2013,140241,1890,Elephant & Castle Freehouse & Motel,CR401969,Accommodation For Homeless,Bed & Breakfast Payment,818
http://statistics.data.gov.uk/id/local-authority/12UE,Huntingdonshire District Council,12/12/2013,139674,1782,Elephant & Castle Freehouse & Motel,CR401969,Accommodation For Homeless,Bed & Breakfast Payment,818
http://statistics.data.gov.uk/id/local-authority/12UE,Huntingdonshire District Council,12/12/2013,138921,2001.75,King Street Housing Society,CR409301,Accommodation For Homeless,Management Charge,733
http://statistics.data.gov.uk/id/local-authority/12UE,Huntingdonshire District Council,19/12/2013,139637,3388,The Active Collection Bureau Ltd,CR452149,Air Quality,Equipment Maintenance,511
http://statistics.data.gov.uk/id/local-authority/12UE,Huntingdonshire District Council,19/12/2013,139153,1440,Ricardo-Aea Ltd,CR403952,Air Quality,Subcontractors,777
http://statistics.data.gov.uk/id/local-authority/12UE,Huntingdonshire District Council,12/12/2013,139499,7.2,Orange Airtime,CR455799,Animal Welfare,Mobile Telephones & Radios,241
http://statistics.data.gov.uk/id/local-authority/12UE,Huntingdonshire District Council,19/12/2013,139271,1818,G Ferrara Ltd,CR478949,Bus Shelters,Sitework,359
http://statistics.data.gov.uk/id/local-authority/12UE,Huntingdonshire District Council,05/12/2013,137975,6199.86,J Breheny Contractors Ltd,CR000314,Bus Station & Shelters General,Sitework,359
http://statistics.data.gov.uk/id/local-authority/12UE,Huntingdonshire District Council,05/12/2013,137995,25.68,Beebys Limited,CR415822,Bus Stations,Building Cleaning External,441
http://statistics.data.gov.uk/id/local-authority/12UE,Huntingdonshire District Council,19/12/2013,139660,25.68,Beebys Limited,CR415822,Bus Stations,Building Cleaning External,441
http://statistics.data.gov.uk/id/local-authority/12UE,Huntingdonshire District Council,05/12/2013,137995,1064.7,Beebys Limited,CR415822,Bus Stations,Building Cleaning Internal,440
http://statistics.data.gov.uk/id/local-authority/12UE,Huntingdonshire District Council,19/12/2013,139660,1064.7,Beebys Limited,CR415822,Bus Stations,Building Cleaning Internal,440
http://statistics.data.gov.uk/id/local-authority/12UE,Huntingdonshire District Council,05/12/2013,137969,1229.09,J Breheny Contractors Ltd,CR000314,Bus Stations,Sitework,359
http://statistics.data.gov.uk/id/local-authority/12UE,Huntingdonshire District Council,19/12/2013,140337,2142,Mta,CR422168,Business & Enterprise Support,Promotions And Exhibitions,743
http://statistics.data.gov.uk/id/local-authority/12UE,Huntingdonshire District Council,05/12/2013,138039,8000,Ytko,CR455448,Business & Enterprise Support,Training - Professional,130
http://statistics.data.gov.uk/id/local-authority/12UE,Huntingdonshire District Council,12/12/2013,139499,4.8,Orange Airtime,CR455799,Business Analysis,Mobile Telephones & Radios,241
http://statistics.data.gov.uk/id/local-authority/12UE,Huntingdonshire District Council,19/12/2013,140198,1200,Bt Redcare,CR410623,C C T V,Equipment Maintenance,511
http://statistics.data.gov.uk/id/local-authority/12UE,Huntingdonshire District Council,12/12/2013,139499,9.6,Orange Airtime,CR455799,C C T V,Mobile Telephones & Radios,241
http://statistics.data.gov.uk/id/local-authority/12UE,Huntingdonshire District Council,19/12/2013,139904,356.4,Forum Events 2 Ltd,CR455599,Call Centre,Medical Fees,734
http://statistics.data.gov.uk/id/local-authority/12UE,Huntingdonshire District Council,12/12/2013,139499,12,Orange Airtime,CR455799,Call Centre,Mobile Telephones & Radios,241
http://statistics.data.gov.uk/id/local-authority/12UE,Huntingdonshire District Council,19/12/2013,139421,300,Public Networks Ltd,CR480920,Call Centre,Training - Other,136
http://statistics.data.gov.uk/id/local-authority/12UE,Huntingdonshire District Council,19/12/2013,139810,13583.4,J Breheny Contractors Ltd,CR000314,Car Park Assets,Sitework,359
http://statistics.data.gov.uk/id/local-authority/12UE,Huntingdonshire District Council,19/12/2013,139814,1200,J Breheny Contractors Ltd,CR000314,Car Park Assets,Sitework,359
http://statistics.data.gov.uk/id/local-authority/12UE,Huntingdonshire District Council,19/12/2013,139816,960.94,J Breheny Contractors Ltd,CR000314,Car Park Assets,Sitework,359
http://statistics.data.gov.uk/id/local-authority/12UE,Huntingdonshire District Council,05/12/2013,137982,829.62,J Breheny Contractors Ltd,CR000314,Car Park Assets,Sitework,359
http://statistics.data.gov.uk/id/local-authority/12UE,Huntingdonshire District Council,05/12/2013,137980,714.91,J Breheny Contractors Ltd,CR000314,Car Park Assets,Sitework,359
http://statistics.data.gov.uk/id/local-authority/12UE,Huntingdonshire District Council,05/12/2013,139144,363521.89,Graham,CR480029,Car Parks Capital,Building Construction,300
http://statistics.data.gov.uk/id/local-authority/12UE,Huntingdonshire District Council,19/12/2013,139815,9322.09,J Breheny Contractors Ltd,CR000314,Car Parks Capital,Sitework,359
http://statistics.data.gov.uk/id/local-authority/12UE,Huntingdonshire District Council,05/12/2013,138852,2502,Aea Training,CR40222,Central Services M Us,Conferences,137
http://statistics.data.gov.uk/id/local-authority/12UE,Huntingdonshire District Council,19/12/2013,139219,733.14,Sarfo Solicitors,CR415973,Central Services M Us,Laboratory Services,725
http://statistics.data.gov.uk/id/local-authority/12UE,Huntingdonshire District Council,12/12/2013,139499,28.8,Orange Airtime,CR455799,Central Services M Us,Mobile Telephones & Radios,241
http://statistics.data.gov.uk/id/local-authority/12UE,Huntingdonshire District Council,13/12/2013,139655,6499.96,Computershare Vouchers Ltd,CR412205,Child Care Vouchers - Payroll,Deductions Paid To Third Party,26
http://statistics.data.gov.uk/id/local-authority/12UE,Huntingdonshire District Council,23/12/2013,140651,6499.96,Computershare Vouchers Ltd,CR412205,Child Care Vouchers - Payroll,Deductions Paid To Third Party,26
http://statistics.data.gov.uk/id/local-authority/12UE,Huntingdonshire District Council,19/12/2013,139462,4714.28,Locata Housing Services Ltd,CR478274,Choice Based Lettings (Ex Chr),Software,206
http://statistics.data.gov.uk/id/local-authority/12UE,Huntingdonshire District Council,19/12/2013,139465,5954.82,Locata Housing Services Ltd,CR478274,Choice Based Lettings (Ex Chr),Subcontractors,777
http://statistics.data.gov.uk/id/local-authority/12UE,Huntingdonshire District Council,19/12/2013,139459,600,Locata Housing Services Ltd,CR478274,Choice Based Lettings (Ex Chr),Translation Services,766
http://statistics.data.gov.uk/id/local-authority/12UE,Huntingdonshire District Council,05/12/2013,138806,31980.2,Aragon Homes Ltd,CR132307,Commercial Properties,Gen Building Mtce - Responsive,303
http://statistics.data.gov.uk/id/local-authority/12UE,Huntingdonshire District Council,12/12/2013,139499,21.6,Orange Airtime,CR455799,Community Services M Us,Mobile Telephones & Radios,241
http://statistics.data.gov.uk/id/local-authority/12UE,Huntingdonshire District Council,19/12/2013,139160,11258.4,Discovery Ce Limited,CR455830,Contaminated Land,Subcontractors,777
http://statistics.data.gov.uk/id/local-authority/12UE,Huntingdonshire District Council,12/12/2013,139499,52.8,Orange Airtime,CR455799,Corporate Office Mus,Mobile Telephones & Radios,241
http://statistics.data.gov.uk/id/local-authority/12UE,Huntingdonshire District Council,19/12/2013,139493,1434,Cfl Estate Services,CR455208,Corporate Office Mus,Property Management,781
http://statistics.data.gov.uk/id/local-authority/12UE,Huntingdonshire District Council,05/12/2013,137985,1202.49,Newlyn Plc,CR409114,Council Tax,Bailiffs,703
http://statistics.data.gov.uk/id/local-authority/12UE,Huntingdonshire District Council,19/12/2013,139636,1015.67,Newlyn Plc,CR409114,Council Tax,Bailiffs,703
http://statistics.data.gov.uk/id/local-authority/12UE,Huntingdonshire District Council,12/12/2013,138449,959.46,Newlyn Plc,CR409114,Council Tax,Bailiffs,703
http://statistics.data.gov.uk/id/local-authority/12UE,Huntingdonshire District Council,19/12/2013,138816,865.4,Newlyn Plc,CR409114,Council Tax,Bailiffs,703
http://statistics.data.gov.uk/id/local-authority/12UE,Huntingdonshire District Council,19/12/2013,139157,699.7,Newlyn Plc,CR409114,Council Tax,Bailiffs,703
http://statistics.data.gov.uk/id/local-authority/12UE,Huntingdonshire District Council,19/12/2013,140185,600.8,British Gas Business,CR478619,Countryside,Gas,421
http://statistics.data.gov.uk/id/local-authority/12UE,Huntingdonshire District Council,12/12/2013,139894,1650,Bellmans Buffet Service,CR032961,Countryside,Materials For Resale,570
http://statistics.data.gov.uk/id/local-authority/12UE,Huntingdonshire District Council,12/12/2013,139499,33.6,Orange Airtime,CR455799,Countryside,Mobile Telephones & Radios,241
http://statistics.data.gov.uk/id/local-authority/12UE,Huntingdonshire District Council,19/12/2013,140317,604.8,Fwag East Limited,CR455465,Countryside,Sitework,359
http://statistics.data.gov.uk/id/local-authority/12UE,Huntingdonshire District Council,19/12/2013,140311,1690.01,Arthur Ibbett Ltd,CR000430,Countryside,Vehicle Maintenance External,619
http://statistics.data.gov.uk/id/local-authority/12UE,Huntingdonshire District Council,19/12/2013,140137,372.05,G4s Cashservices Uk Ltd,CR407133,Customer Service Centres,Cash Collection,702
http://statistics.data.gov.uk/id/local-authority/12UE,Huntingdonshire District Council,19/12/2013,139904,118.8,Forum Events 2 Ltd,CR455599,Customer Service Centres,Medical Fees,734
http://statistics.data.gov.uk/id/local-authority/12UE,Huntingdonshire District Council,12/12/2013,139499,12,Orange Airtime,CR455799,Customer Service Centres,Mobile Telephones & Radios,241
http://statistics.data.gov.uk/id/local-authority/12UE,Huntingdonshire District Council,19/12/2013,139884,2647.54,White Commercial Surveyors Ltd,CR412242,Customer Service Centres,Rent,410
http://statistics.data.gov.uk/id/local-authority/12UE,Huntingdonshire District Council,19/12/2013,139878,1436.57,J Breheny Contractors Ltd,CR000314,Cycling,Sitework,359
http://statistics.data.gov.uk/id/local-authority/12UE,Huntingdonshire District Council,12/12/2013,138973,108,Local World Ltd,CR000072,Dc Application Processing,Advertising - Statutory Notice,257
http://statistics.data.gov.uk/id/local-authority/12UE,Huntingdonshire District Council,19/12/2013,139900,11038.07,Deloitte Llp,CR400573,Dc Application Processing,Consultants,711
http://statistics.data.gov.uk/id/local-authority/12UE,Huntingdonshire District Council,19/12/2013,139898,571.2,Sabell & Co (B'Ham) Ltd,CR000712,Dc Application Processing,Stationery,225
http://statistics.data.gov.uk/id/local-authority/12UE,Huntingdonshire District Council,19/12/2013,139471,682.5,Project Solution  Ltd,CR455836,Development Team,Consultants,711
http://statistics.data.gov.uk/id/local-authority/12UE,Huntingdonshire District Council,19/12/2013,139825,4853.93,Canon Uk Ltd,CR409013,Document Centre,Equipment Maintenance,511
http://statistics.data.gov.uk/id/local-authority/12UE,Huntingdonshire District Council,19/12/2013,139824,3404.68,Canon Uk Ltd,CR409013,Document Centre,Equipment Maintenance,511
http://statistics.data.gov.uk/id/local-authority/12UE,Huntingdonshire District Council,19/12/2013,139862,871.59,Fingerprint,CR001165,Document Centre,Equipment Maintenance,511
http://statistics.data.gov.uk/id/local-authority/12UE,Huntingdonshire District Council,12/12/2013,138600,2515.64,Konica Minolta,CR478866,Document Centre,Equipment Maintenance,511
http://statistics.data.gov.uk/id/local-authority/12UE,Huntingdonshire District Council,19/12/2013,139833,1490.11,Konica Minolta,CR478866,Document Centre,Equipment Maintenance,511
http://statistics.data.gov.uk/id/local-authority/12UE,Huntingdonshire District Council,12/12/2013,139499,2.4,Orange Airtime,CR455799,Document Centre,Mobile Telephones & Radios,241
http://statistics.data.gov.uk/id/local-authority/12UE,Huntingdonshire District Council,19/12/2013,140355,783.24,Antalis Ltd,CR479468,Document Centre,Paper,562
http://statistics.data.gov.uk/id/local-authority/12UE,Huntingdonshire District Council,19/12/2013,139283,537.84,Antalis Ltd,CR479468,Document Centre,Paper,562
http://statistics.data.gov.uk/id/local-authority/12UE,Huntingdonshire District Council,19/12/2013,139285,511.2,Antalis Ltd,CR479468,Document Centre,Paper,562
http://statistics.data.gov.uk/id/local-authority/12UE,Huntingdonshire District Council,05/12/2013,138599,54.67,Royal Mail,CR027083,Document Centre,Postage,231
http://statistics.data.gov.uk/id/local-authority/12UE,Huntingdonshire District Council,19/12/2013,139151,1783.9,Royal Mail,CR027083,Document Centre,Postage,231
http://statistics.data.gov.uk/id/local-authority/12UE,Huntingdonshire District Council,19/12/2013,139826,1586.75,Royal Mail,CR027083,Document Centre,Postage,231
http://statistics.data.gov.uk/id/local-authority/12UE,Huntingdonshire District Council,19/12/2013,139827,9.05,Royal Mail,CR027083,Document Centre,Postage,231
http://statistics.data.gov.uk/id/local-authority/12UE,Huntingdonshire District Council,19/12/2013,139281,694.12,T N T Post London Ltd,CR479965,Document Centre,Postage,231
http://statistics.data.gov.uk/id/local-authority/12UE,Huntingdonshire District Council,05/12/2013,139280,1284.13,T N T Post London Ltd,CR479965,Document Centre,Postage,231
http://statistics.data.gov.uk/id/local-authority/12UE,Huntingdonshire District Council,19/12/2013,140141,923.68,T N T Post London Ltd,CR479965,Document Centre,Postage,231
http://statistics.data.gov.uk/id/local-authority/12UE,Huntingdonshire District Council,12/12/2013,138596,1022.74,T N T Post London Ltd,CR479965,Document Centre,Postage,231
http://statistics.data.gov.uk/id/local-authority/12UE,Huntingdonshire District Council,05/12/2013,138444,1009.5,T N T Post London Ltd,CR479965,Document Centre,Postage,231
http://statistics.data.gov.uk/id/local-authority/12UE,Huntingdonshire District Council,12/12/2013,139303,3757,Sudbury Print Group Ltd,CR024134,Document Centre,Subcontractors,777
http://statistics.data.gov.uk/id/local-authority/12UE,Huntingdonshire District Council,19/12/2013,140119,11643,Swan Print,CR413699,Document Centre,Subcontractors,777
http://statistics.data.gov.uk/id/local-authority/12UE,Huntingdonshire District Council,19/12/2013,139722,3779.68,Staffline Group,CR416827,Domestic Refuse,Hired Staff,100
http://statistics.data.gov.uk/id/local-authority/12UE,Huntingdonshire District Council,05/12/2013,138579,3372.98,Staffline Group,CR416827,Domestic Refuse,Hired Staff,100
http://statistics.data.gov.uk/id/local-authority/12UE,Huntingdonshire District Council,19/12/2013,139721,3361.61,Staffline Group,CR416827,Domestic Refuse,Hired Staff,100
http://statistics.data.gov.uk/id/local-authority/12UE,Huntingdonshire District Council,19/12/2013,139718,2704.64,Staffline Group,CR416827,Domestic Refuse,Hired Staff,100
http://statistics.data.gov.uk/id/local-authority/12UE,Huntingdonshire District Council,05/12/2013,138581,2656.3,Staffline Group,CR416827,Domestic Refuse,Hired Staff,100
http://statistics.data.gov.uk/id/local-authority/12UE,Huntingdonshire District Council,19/12/2013,138924,2485.66,Staffline Group,CR416827,Domestic Refuse,Hired Staff,100
http://statistics.data.gov.uk/id/local-authority/12UE,Huntingdonshire District Council,19/12/2013,139724,2118.78,Staffline Group,CR416827,Domestic Refuse,Hired Staff,100
http://statistics.data.gov.uk/id/local-authority/12UE,Huntingdonshire District Council,19/12/2013,140122,2064.74,Staffline Group,CR416827,Domestic Refuse,Hired Staff,100
http://statistics.data.gov.uk/id/local-authority/12UE,Huntingdonshire District Council,19/12/2013,138935,1968.05,Staffline Group,CR416827,Domestic Refuse,Hired Staff,100
http://statistics.data.gov.uk/id/local-authority/12UE,Huntingdonshire District Council,19/12/2013,140121,1803.1,Staffline Group,CR416827,Domestic Refuse,Hired Staff,100
http://statistics.data.gov.uk/id/local-authority/12UE,Huntingdonshire District Council,19/12/2013,140120,1203.01,Staffline Group,CR416827,Domestic Refuse,Hired Staff,100
http://statistics.data.gov.uk/id/local-authority/12UE,Huntingdonshire District Council,19/12/2013,137543,2710.8,Direct Telecom Services Ltd,CR001981,Domestic Refuse,Mobile Telephones & Radios,241
http://statistics.data.gov.uk/id/local-authority/12UE,Huntingdonshire District Council,19/12/2013,138875,467.64,Pristine Condition,CR482653,Domestic Refuse,Training - Operational,131
http://statistics.data.gov.uk/id/local-authority/12UE,Huntingdonshire District Council,19/12/2013,139468,3151.79,Bandvulc Tyres Ltd,CR406810,Domestic Refuse,Tyres,630
http://statistics.data.gov.uk/id/local-authority/12UE,Huntingdonshire District Council,19/12/2013,139681,95,M & N Vehicle Services,CR480661,Domestic Refuse,Vehicle Mot,622
http://statistics.data.gov.uk/id/local-authority/12UE,Huntingdonshire District Council,19/12/2013,139474,1875.86,Dennis Eagle Ltd,CR000200,Domestic Refuse,Vehicle Parts & Fittings,625
http://statistics.data.gov.uk/id/local-authority/12UE,Huntingdonshire District Council,19/12/2013,138863,1226.3,Dennis Eagle Ltd,CR000200,Domestic Refuse,Vehicle Parts & Fittings,625
http://statistics.data.gov.uk/id/local-authority/12UE,Huntingdonshire District Council,19/12/2013,139895,976.94,Dennis Eagle Ltd,CR000200,Domestic Refuse,Vehicle Parts & Fittings,625
http://statistics.data.gov.uk/id/local-authority/12UE,Huntingdonshire District Council,12/12/2013,138455,639.52,Dennis Eagle Ltd,CR000200,Domestic Refuse,Vehicle Parts & Fittings,625
http://statistics.data.gov.uk/id/local-authority/12UE,Huntingdonshire District Council,19/12/2013,139681,2997.59,M & N Vehicle Services,CR480661,Domestic Refuse,Vehicle Parts & Fittings,625
http://statistics.data.gov.uk/id/local-authority/12UE,Huntingdonshire District Council,19/12/2013,138953,1632.71,Terberg Matec Uk Ltd,CR402183,Domestic Refuse,Vehicle Parts & Fittings,625
http://statistics.data.gov.uk/id/local-authority/12UE,Huntingdonshire District Council,19/12/2013,139307,714.62,Terberg Matec Uk Ltd,CR402183,Domestic Refuse,Vehicle Parts & Fittings,625
http://statistics.data.gov.uk/id/local-authority/12UE,Huntingdonshire District Council,19/12/2013,139710,1460.65,Terberg Matec Uk Ltd,CR402183,Domestic Refuse,Vehicle Refurbishment,624
http://statistics.data.gov.uk/id/local-authority/12UE,Huntingdonshire District Council,12/12/2013,139736,4553.71,E-On Energy,CR416430,E F H And Depots,Electricity,420
http://statistics.data.gov.uk/id/local-authority/12UE,Huntingdonshire District Council,19/12/2013,139744,865.43,E-On Energy,CR416430,E F H And Depots,Gas,421
http://statistics.data.gov.uk/id/local-authority/12UE,Huntingdonshire District Council,12/12/2013,138550,816,Cambridge Door Services,CR415341,E F H And Depots,Gen Building Mtce - Planned,304
http://statistics.data.gov.uk/id/local-authority/12UE,Huntingdonshire District Council,19/12/2013,139310,1213.33,Kershaw Mechanical Services Ltd,CR480268,E F H And Depots,Plant & Equipment Maintenance,380
http://statistics.data.gov.uk/id/local-authority/12UE,Huntingdonshire District Council,19/12/2013,140139,557.38,Anglian Water,CR000071,E F H And Depots,Sewerage,433
http://statistics.data.gov.uk/id/local-authority/12UE,Huntingdonshire District Council,05/12/2013,138203,1956,Dal-Rod (Camridgeshire),CR413675,E F H And Depots,Sitework,359
http://statistics.data.gov.uk/id/local-authority/12UE,Huntingdonshire District Council,19/12/2013,139812,2025,J Breheny Contractors Ltd,CR000314,E F H And Depots,Sitework,359
http://statistics.data.gov.uk/id/local-authority/12UE,Huntingdonshire District Council,19/12/2013,140139,517.53,Anglian Water,CR000071,E F H And Depots,Water,432
http://statistics.data.gov.uk/id/local-authority/12UE,Huntingdonshire District Council,19/12/2013,139834,7711.55,Royal Mail,CR027083,Electoral Registration,Postage,231
http://statistics.data.gov.uk/id/local-authority/12UE,Huntingdonshire District Council,05/12/2013,138599,5698.47,Royal Mail,CR027083,Electoral Registration,Postage,231
http://statistics.data.gov.uk/id/local-authority/12UE,Huntingdonshire District Council,12/12/2013,138598,2057.76,Royal Mail,CR027083,Electoral Registration,Postage,231
http://statistics.data.gov.uk/id/local-authority/12UE,Huntingdonshire District Council,19/12/2013,139827,1266.39,Royal Mail,CR027083,Electoral Registration,Postage,231
http://statistics.data.gov.uk/id/local-authority/12UE,Huntingdonshire District Council,19/12/2013,139281,88.32,T N T Post London Ltd,CR479965,Electoral Registration,Postage,231
http://statistics.data.gov.uk/id/local-authority/12UE,Huntingdonshire District Council,19/12/2013,140141,64.73,T N T Post London Ltd,CR479965,Electoral Registration,Postage,231
http://statistics.data.gov.uk/id/local-authority/12UE,Huntingdonshire District Council,12/12/2013,138596,19.67,T N T Post London Ltd,CR479965,Electoral Registration,Postage,231
http://statistics.data.gov.uk/id/local-authority/12UE,Huntingdonshire District Council,12/12/2013,138973,428.15,Local World Ltd,CR000072,Energy Efficiency,Advertising/Promoting Services,255
http://statistics.data.gov.uk/id/local-authority/12UE,Huntingdonshire District Council,19/12/2013,140188,944.64,Marney Hall Consultancy Limited,CR480342,Energy Efficiency,Sitework,359
http://statistics.data.gov.uk/id/local-authority/12UE,Huntingdonshire District Council,19/12/2013,138871,2040,Richard Herrmann Assoc Ltd,CR403316,Environment Equipment Capital,Consultants,711
http://statistics.data.gov.uk/id/local-authority/12UE,Huntingdonshire District Council,19/12/2013,139734,2484,J Breheny Contractors Ltd,CR000314,Environment Equipment Capital,Sitework,359
http://statistics.data.gov.uk/id/local-authority/12UE,Huntingdonshire District Council,19/12/2013,138891,779.04,Ufficio,CR456120,Environmental Health M Us,Furniture,200
http://statistics.data.gov.uk/id/local-authority/12UE,Huntingdonshire District Council,19/12/2013,139820,1983.9,Sonovate Ltd,CR455998,Environmental Health M Us,Hired Staff,100
http://statistics.data.gov.uk/id/local-authority/12UE,Huntingdonshire District Council,12/12/2013,138790,789.6,Sonovate Ltd,CR455998,Environmental Health M Us,Hired Staff,100
http://statistics.data.gov.uk/id/local-authority/12UE,Huntingdonshire District Council,12/12/2013,139499,148.8,Orange Airtime,CR455799,Environmental Health M Us,Mobile Telephones & Radios,241
http://statistics.data.gov.uk/id/local-authority/12UE,Huntingdonshire District Council,19/12/2013,139627,650,University Of Birmingham,CR009352,Environmental Health M Us,Training - Operational,131
http://statistics.data.gov.uk/id/local-authority/12UE,Huntingdonshire District Council,05/12/2013,137978,10226.51,J Breheny Contractors Ltd,CR000314,Environmental Imps Mgt,Sitework,359
http://statistics.data.gov.uk/id/local-authority/12UE,Huntingdonshire District Council,05/12/2013,137984,822.91,J Breheny Contractors Ltd,CR000314,Environmental Imps Mgt,Sitework,359
http://statistics.data.gov.uk/id/local-authority/12UE,Huntingdonshire District Council,19/12/2013,139211,666,Ramsay Todd Ltd,CR455673,Environmental Management,Consultants,711
http://statistics.data.gov.uk/id/local-authority/12UE,Huntingdonshire District Council,12/12/2013,139499,96,Orange Airtime,CR455799,Environmental Management,Mobile Telephones & Radios,241
http://statistics.data.gov.uk/id/local-authority/12UE,Huntingdonshire District Council,19/12/2013,139212,1722.6,Cipfa Business Limited,CR480088,Financial Services Mus,Books & Publications,250
http://statistics.data.gov.uk/id/local-authority/12UE,Huntingdonshire District Council,12/12/2013,139663,1194,Cipfa Business Limited,CR480088,Financial Services Mus,Books & Publications,250
http://statistics.data.gov.uk/id/local-authority/12UE,Huntingdonshire District Council,12/12/2013,139499,19.6,Orange Airtime,CR455799,Financial Services Mus,Mobile Telephones & Radios,241
http://statistics.data.gov.uk/id/local-authority/12UE,Huntingdonshire District Council,05/12/2013,138556,555.6,Tecalemit Garage Equipment Co Ltd,CR477683,Fleet Management,Equipment Maintenance,511
http://statistics.data.gov.uk/id/local-authority/12UE,Huntingdonshire District Council,19/12/2013,139802,545.04,Ate,CR401360,Fleet Management,Equipment Purchases,500
http://statistics.data.gov.uk/id/local-authority/12UE,Huntingdonshire District Council,19/12/2013,138959,875.28,Trinity Engineering & Component Supplies Ltd,CR455479,Fleet Management,Equipment Purchases,500
http://statistics.data.gov.uk/id/local-authority/12UE,Huntingdonshire District Council,19/12/2013,138961,3002.4,Red Forge Ltd,CR405690,Fleet Management,Travel Expenses,636
http://statistics.data.gov.uk/id/local-authority/12UE,Huntingdonshire District Council,12/12/2013,138620,2572.23,Arthur Ibbett Ltd,CR000430,Grounds Maintenance (Combined),Equipment Purchases,500
http://statistics.data.gov.uk/id/local-authority/12UE,Huntingdonshire District Council,19/12/2013,139832,577.38,Landmark Trading Ltd,CR411433,Grounds Maintenance (Combined),Equipment Purchases,500
http://statistics.data.gov.uk/id/local-authority/12UE,Huntingdonshire District Council,05/12/2013,138580,651.84,Staffline Group,CR416827,Grounds Maintenance (Combined),Hired Staff,100
http://statistics.data.gov.uk/id/local-authority/12UE,Huntingdonshire District Council,19/12/2013,138933,651.84,Staffline Group,CR416827,Grounds Maintenance (Combined),Hired Staff,100
http://statistics.data.gov.uk/id/local-authority/12UE,Huntingdonshire District Council,19/12/2013,139719,651.84,Staffline Group,CR416827,Grounds Maintenance (Combined),Hired Staff,100
http://statistics.data.gov.uk/id/local-authority/12UE,Huntingdonshire District Council,19/12/2013,139468,32.98,Bandvulc Tyres Ltd,CR406810,Grounds Maintenance (Combined),Tyres,630
http://statistics.data.gov.uk/id/local-authority/12UE,Huntingdonshire District Council,12/12/2013,139499,9.6,Orange Airtime,CR455799,Head Of Imd,Mobile Telephones & Radios,241
http://statistics.data.gov.uk/id/local-authority/12UE,Huntingdonshire District Council,05/12/2013,138415,2520,Khipu Networks Ltd,CR482348,Helpdesk,Consultants,711
http://statistics.data.gov.uk/id/local-authority/12UE,Huntingdonshire District Council,19/12/2013,139320,5545.73,Khipu Networks Ltd,CR482348,Helpdesk,Equipment Maintenance,511
http://statistics.data.gov.uk/id/local-authority/12UE,Huntingdonshire District Council,05/12/2013,138595,1350,Premier It Recruitment Ltd,CR454029,Helpdesk,Hired Staff,100
http://statistics.data.gov.uk/id/local-authority/12UE,Huntingdonshire District Council,19/12/2013,139318,1350,Premier It Recruitment Ltd,CR454029,Helpdesk,Hired Staff,100
http://statistics.data.gov.uk/id/local-authority/12UE,Huntingdonshire District Council,19/12/2013,139319,1350,Premier It Recruitment Ltd,CR454029,Helpdesk,Hired Staff,100
http://statistics.data.gov.uk/id/local-authority/12UE,Huntingdonshire District Council,05/12/2013,138594,1215,Premier It Recruitment Ltd,CR454029,Helpdesk,Hired Staff,100
http://statistics.data.gov.uk/id/local-authority/12UE,Huntingdonshire District Council,19/12/2013,139454,1680,Phoenix Software Ltd,CR031918,Helpdesk,I C T Services,731
http://statistics.data.gov.uk/id/local-authority/12UE,Huntingdonshire District Council,05/12/2013,138269,2039.77,Virgin Media Business,CR033120,Helpdesk,I T Line Rental,248
http://statistics.data.gov.uk/id/local-authority/12UE,Huntingdonshire District Council,05/12/2013,139335,7109.59,Virgin Media Business/Cpsn,CR455148,Helpdesk,I T Line Rental,248
http://statistics.data.gov.uk/id/local-authority/12UE,Huntingdonshire District Council,05/12/2013,139345,7109.59,Virgin Media Business/Cpsn,CR455148,Helpdesk,I T Line Rental,248
http://statistics.data.gov.uk/id/local-authority/12UE,Huntingdonshire District Council,12/12/2013,139499,48,Orange Airtime,CR455799,Helpdesk,Mobile Telephones & Radios,241
http://statistics.data.gov.uk/id/local-authority/12UE,Huntingdonshire District Council,19/12/2013,139476,6115.25,Frontrange Solutions,CR403465,Helpdesk,Software,206
http://statistics.data.gov.uk/id/local-authority/12UE,Huntingdonshire District Council,05/12/2013,138269,1482.65,Virgin Media Business,CR033120,Helpdesk,Telephone Charges,240
http://statistics.data.gov.uk/id/local-authority/12UE,Huntingdonshire District Council,19/12/2013,139771,900,Robust It,CR456000,Helpdesk,Training - I T,134
http://statistics.data.gov.uk/id/local-authority/12UE,Huntingdonshire District Council,19/12/2013,139772,900,Robust It,CR456000,Helpdesk,Training - I T,134
http://statistics.data.gov.uk/id/local-authority/12UE,Huntingdonshire District Council,19/12/2013,139773,598.8,Robust It,CR456000,Helpdesk,Training - I T,134
http://statistics.data.gov.uk/id/local-authority/12UE,Huntingdonshire District Council,19/12/2013,140332,4325.16,15 New Bridge Street,CR480013,Housing  Benefits Admin,Legal Fees,729
http://statistics.data.gov.uk/id/local-authority/12UE,Huntingdonshire District Council,19/12/2013,140331,3732.42,15 New Bridge Street,CR480013,Housing  Benefits Admin,Legal Fees,729
http://statistics.data.gov.uk/id/local-authority/12UE,Huntingdonshire District Council,19/12/2013,138519,974.14,James Andrews Recruitment,CR453753,Housing Management Units,Hired Staff,100
http://statistics.data.gov.uk/id/local-authority/12UE,Huntingdonshire District Council,19/12/2013,139469,974.14,James Andrews Recruitment,CR453753,Housing Management Units,Hired Staff,100
http://statistics.data.gov.uk/id/local-authority/12UE,Huntingdonshire District Council,12/12/2013,138141,947.81,James Andrews Recruitment,CR453753,Housing Management Units,Hired Staff,100
http://statistics.data.gov.uk/id/local-authority/12UE,Huntingdonshire District Council,19/12/2013,138922,901.74,James Andrews Recruitment,CR453753,Housing Management Units,Hired Staff,100
http://statistics.data.gov.uk/id/local-authority/12UE,Huntingdonshire District Council,05/12/2013,137776,737.18,James Andrews Recruitment,CR453753,Housing Management Units,Hired Staff,100
http://statistics.data.gov.uk/id/local-authority/12UE,Huntingdonshire District Council,12/12/2013,139499,19.2,Orange Airtime,CR455799,Housing Management Units,Mobile Telephones & Radios,241
http://statistics.data.gov.uk/id/local-authority/12UE,Huntingdonshire District Council,19/12/2013,139778,599.36,Mike Ellison Training,CR452157,Housing Management Units,Training - Operational,131
http://statistics.data.gov.uk/id/local-authority/12UE,Huntingdonshire District Council,19/12/2013,140085,2604.34,Swalec,CR407130,Housing Services Other,Electricity,420
http://statistics.data.gov.uk/id/local-authority/12UE,Huntingdonshire District Council,19/12/2013,139463,2800,Click Hr Ltd,CR452125,Human Resources,Human Resources Services,779
http://statistics.data.gov.uk/id/local-authority/12UE,Huntingdonshire District Council,12/12/2013,139499,14.4,Orange Airtime,CR455799,Human Resources,Mobile Telephones & Radios,241
http://statistics.data.gov.uk/id/local-authority/12UE,Huntingdonshire District Council,19/12/2013,139766,1075.62,Dell Computer Corporation,CR408320,I T Capital,Equipment Purchases,500
http://statistics.data.gov.uk/id/local-authority/12UE,Huntingdonshire District Council,12/12/2013,139499,9.6,Orange Airtime,CR455799,Imd Trading,Mobile Telephones & Radios,241
http://statistics.data.gov.uk/id/local-authority/12UE,Huntingdonshire District Council,19/12/2013,140150,607.54,Swalec,CR407130,Industrial Properties,Electricity,420
http://statistics.data.gov.uk/id/local-authority/12UE,Huntingdonshire District Council,17/12/2013,140153,30000,Acebench Limited,CR405428,Industrial Properties,Rent,410
http://statistics.data.gov.uk/id/local-authority/12UE,Huntingdonshire District Council,17/12/2013,140215,-30000,Acebench Limited,CR405428,Industrial Properties,Rent,410
http://statistics.data.gov.uk/id/local-authority/12UE,Huntingdonshire District Council,12/12/2013,139499,9.6,Orange Airtime,CR455799,Information Manager,Mobile Telephones & Radios,241
http://statistics.data.gov.uk/id/local-authority/12UE,Huntingdonshire District Council,20/12/2013,137636,1755.96,Aon Consulting Ltd,CR477325,Insurance Premium Holding,Insurance Public Liability,160
http://statistics.data.gov.uk/id/local-authority/12UE,Huntingdonshire District Council,20/12/2013,140627,-1755.96,Aon Consulting Ltd,CR477325,Insurance Premium Holding,Insurance Public Liability,160
http://statistics.data.gov.uk/id/local-authority/12UE,Huntingdonshire District Council,19/12/2013,139281,373.69,T N T Post London Ltd,CR479965,Internal Services Holding,Postage,231
http://statistics.data.gov.uk/id/local-authority/12UE,Huntingdonshire District Council,05/12/2013,138969,564,Bigprinting,CR416383,Leisure Centres Capital,Fixtures & Fittings,379
http://statistics.data.gov.uk/id/local-authority/12UE,Huntingdonshire District Council,19/12/2013,140307,902.4,Leisure-Net Solutions,CR411853,Leisure Centres Overall,Advertising/Promoting Services,255
http://statistics.data.gov.uk/id/local-authority/12UE,Huntingdonshire District Council,12/12/2013,139499,2.4,Orange Airtime,CR455799,Leisure Centres Overall,Mobile Telephones & Radios,241
http://statistics.data.gov.uk/id/local-authority/12UE,Huntingdonshire District Council,05/12/2013,138054,864.35,Maudesport Limited,CR003580,Leisure Development,Equipment Purchases,500
http://statistics.data.gov.uk/id/local-authority/12UE,Huntingdonshire District Council,12/12/2013,139499,21.6,Orange Airtime,CR455799,Leisure Development,Mobile Telephones & Radios,241
http://statistics.data.gov.uk/id/local-authority/12UE,Huntingdonshire District Council,05/12/2013,138054,9.54,Maudesport Limited,CR003580,Leisure Development,Postage,231
http://statistics.data.gov.uk/id/local-authority/12UE,Huntingdonshire District Council,19/12/2013,138809,1171.2,Mogo Uk,CR410378,Licences,Licence Plates,564
http://statistics.data.gov.uk/id/local-authority/12UE,Huntingdonshire District Council,12/12/2013,139499,4.8,Orange Airtime,CR455799,Licences,Mobile Telephones & Radios,241
http://statistics.data.gov.uk/id/local-authority/12UE,Huntingdonshire District Council,19/12/2013,138809,17.88,Mogo Uk,CR410378,Licences,Postage,231
http://statistics.data.gov.uk/id/local-authority/12UE,Huntingdonshire District Council,19/12/2013,139470,2164.6,T C Harrison Ford,CR405072,Licences,Vehicle Inspection,618
http://statistics.data.gov.uk/id/local-authority/12UE,Huntingdonshire District Council,12/12/2013,138973,32.4,Local World Ltd,CR000072,Local Development Framework,Advertising - Statutory Notice,257
http://statistics.data.gov.uk/id/local-authority/12UE,Huntingdonshire District Council,19/12/2013,140349,2852.4,Deloitte Llp,CR400573,Local Development Framework,Consultants,711
http://statistics.data.gov.uk/id/local-authority/12UE,Huntingdonshire District Council,12/12/2013,140081,3298.7,Lex Autolease Ltd,CR410751,Managing Directors,Vehicle Operating Lease,601
http://statistics.data.gov.uk/id/local-authority/12UE,Huntingdonshire District Council,12/12/2013,140074,659.74,Lex Autolease Ltd,CR410751,Managing Directors,Vehicle Operating Lease,601
http://statistics.data.gov.uk/id/local-authority/12UE,Huntingdonshire District Council,12/12/2013,140076,-805.18,Lex Autolease Ltd,CR410751,Managing Directors,Vehicle Operating Lease,601
http://statistics.data.gov.uk/id/local-authority/12UE,Huntingdonshire District Council,12/12/2013,140077,-3298.7,Lex Autolease Ltd,CR410751,Managing Directors,Vehicle Operating Lease,601
http://statistics.data.gov.uk/id/local-authority/12UE,Huntingdonshire District Council,05/12/2013,138269,6.9,Virgin Media Business,CR033120,Member Allowances & Support,I T Line Rental,248
http://statistics.data.gov.uk/id/local-authority/12UE,Huntingdonshire District Council,12/12/2013,139499,45.6,Orange Airtime,CR455799,Member Allowances & Support,Mobile Telephones & Radios,241
http://statistics.data.gov.uk/id/local-authority/12UE,Huntingdonshire District Council,19/12/2013,139175,807.04,Portakabin Ltd,CR416090,Miscellaneous Grants,Equipment Hire,507
http://statistics.data.gov.uk/id/local-authority/12UE,Huntingdonshire District Council,19/12/2013,139486,2500,Care Network,CR477579,Miscellaneous Grants,Grants (Paid Out),800
http://statistics.data.gov.uk/id/local-authority/12UE,Huntingdonshire District Council,19/12/2013,139488,4750,Disability Information Service Huntingdonshir,CR408884,Miscellaneous Grants,Grants (Paid Out),800
http://statistics.data.gov.uk/id/local-authority/12UE,Huntingdonshire District Council,19/12/2013,139489,850.2,Portakabin Ltd,CR478566,Miscellaneous Grants,Grants (Paid Out),800
http://statistics.data.gov.uk/id/local-authority/12UE,Huntingdonshire District Council,12/12/2013,138510,576,Dal-Rod Uk Ltd,CR002782,Nightsoil Collection,Subcontractors,777
http://statistics.data.gov.uk/id/local-authority/12UE,Huntingdonshire District Council,19/12/2013,139804,3425.92,Cale Briparc Ltd,CR401137,Off Street Parking,Car Park Machines,522
http://statistics.data.gov.uk/id/local-authority/12UE,Huntingdonshire District Council,19/12/2013,140136,4757.27,G4s Cashservices Uk Ltd,CR407133,Off Street Parking,Cash Collection,702
http://statistics.data.gov.uk/id/local-authority/12UE,Huntingdonshire District Council,12/12/2013,139499,9.6,Orange Airtime,CR455799,Off Street Parking,Mobile Telephones & Radios,241
http://statistics.data.gov.uk/id/local-authority/12UE,Huntingdonshire District Council,19/12/2013,139394,1710.89,Oastlodge Ltd,CR479114,Off Street Parking,Rent,410
http://statistics.data.gov.uk/id/local-authority/12UE,Huntingdonshire District Council,12/12/2013,137710,1387.5,Ecocleen Services Limited,CR406985,One Leisure Huntingdon,Building Cleaning Internal,440
http://statistics.data.gov.uk/id/local-authority/12UE,Huntingdonshire District Council,19/12/2013,140137,297.62,G4s Cashservices Uk Ltd,CR407133,One Leisure Huntingdon,Cash Collection,702
http://statistics.data.gov.uk/id/local-authority/12UE,Huntingdonshire District Council,12/12/2013,139247,664.09,Brenntag Uk Ltd,CR015017,One Leisure Huntingdon,Chemicals,551
http://statistics.data.gov.uk/id/local-authority/12UE,Huntingdonshire District Council,12/12/2013,139738,4470.01,E-On Energy,CR416430,One Leisure Huntingdon,Electricity,420
http://statistics.data.gov.uk/id/local-authority/12UE,Huntingdonshire District Council,05/12/2013,138807,2400.57,Swalec,CR407130,One Leisure Huntingdon,Electricity,420
http://statistics.data.gov.uk/id/local-authority/12UE,Huntingdonshire District Council,19/12/2013,139767,1785.43,Swalec,CR407130,One Leisure Huntingdon,Electricity,420
http://statistics.data.gov.uk/id/local-authority/12UE,Huntingdonshire District Council,19/12/2013,139755,3763.3,E-On Energy,CR416430,One Leisure Huntingdon,Gas,421
http://statistics.data.gov.uk/id/local-authority/12UE,Huntingdonshire District Council,19/12/2013,139748,1093.13,E-On Energy,CR416430,One Leisure Huntingdon,Gas,421
http://statistics.data.gov.uk/id/local-authority/12UE,Huntingdonshire District Council,12/12/2013,139499,4.8,Orange Airtime,CR455799,One Leisure Huntingdon,Mobile Telephones & Radios,241
http://statistics.data.gov.uk/id/local-authority/12UE,Huntingdonshire District Council,19/12/2013,139349,346.2,Corporate Trends,CR415966,One Leisure Huntingdon,Protective Clothing & Uniforms,163
http://statistics.data.gov.uk/id/local-authority/12UE,Huntingdonshire District Council,05/12/2013,138269,1.12,Virgin Media Business,CR033120,One Leisure Huntingdon,Telephone Charges,240
http://statistics.data.gov.uk/id/local-authority/12UE,Huntingdonshire District Council,19/12/2013,140137,74.41,G4s Cashservices Uk Ltd,CR407133,One Leisure Ramsey,Cash Collection,702
http://statistics.data.gov.uk/id/local-authority/12UE,Huntingdonshire District Council,19/12/2013,139648,576.96,Maskearaid Ind Supplies,CR033423,One Leisure Ramsey,Cleaning Materials,443
http://statistics.data.gov.uk/id/local-authority/12UE,Huntingdonshire District Council,19/12/2013,140082,2649.02,Swalec,CR407130,One Leisure Ramsey,Electricity,420
http://statistics.data.gov.uk/id/local-authority/12UE,Huntingdonshire District Council,19/12/2013,139644,552,Activ Security Uk Ltd,CR409710,One Leisure Ramsey,Equipment Maintenance,511
http://statistics.data.gov.uk/id/local-authority/12UE,Huntingdonshire District Council,19/12/2013,139653,1319.7,Honeywell Novar Systems,CR406826,One Leisure Ramsey,Equipment Maintenance,511
http://statistics.data.gov.uk/id/local-authority/12UE,Huntingdonshire District Council,19/12/2013,139741,2096.92,E-On Energy,CR416430,One Leisure Ramsey,Gas,421
http://statistics.data.gov.uk/id/local-authority/12UE,Huntingdonshire District Council,19/12/2013,139650,678.6,Burgin Ltd,CR482438,One Leisure Ramsey,Gen Building Mtce - Responsive,303
http://statistics.data.gov.uk/id/local-authority/12UE,Huntingdonshire District Council,12/12/2013,139499,3.2,Orange Airtime,CR455799,One Leisure Ramsey,Mobile Telephones & Radios,241
http://statistics.data.gov.uk/id/local-authority/12UE,Huntingdonshire District Council,19/12/2013,139349,54.6,Corporate Trends,CR415966,One Leisure Ramsey,Protective Clothing & Uniforms,163
http://statistics.data.gov.uk/id/local-authority/12UE,Huntingdonshire District Council,12/12/2013,139647,535.46,Booker Cash And Carry,CR027611,One Leisure Ramsey,Vending Materials,560
http://statistics.data.gov.uk/id/local-authority/12UE,Huntingdonshire District Council,19/12/2013,139877,1089.3,Ecocleen Services Limited,CR406985,One Leisure Sawtry,Building Cleaning Internal,440
http://statistics.data.gov.uk/id/local-authority/12UE,Huntingdonshire District Council,19/12/2013,140137,74.41,G4s Cashservices Uk Ltd,CR407133,One Leisure Sawtry,Cash Collection,702
http://statistics.data.gov.uk/id/local-authority/12UE,Huntingdonshire District Council,19/12/2013,140084,3688.83,Swalec,CR407130,One Leisure Sawtry,Electricity,420
http://statistics.data.gov.uk/id/local-authority/12UE,Huntingdonshire District Council,19/12/2013,139750,1919.24,E-On Energy,CR416430,One Leisure Sawtry,Gas,421
http://statistics.data.gov.uk/id/local-authority/12UE,Huntingdonshire District Council,12/12/2013,139499,4.8,Orange Airtime,CR455799,One Leisure Sawtry,Mobile Telephones & Radios,241
http://statistics.data.gov.uk/id/local-authority/12UE,Huntingdonshire District Council,05/12/2013,139282,655.2,G4s Secure Solutions (Uk) Ltd,CR454030,One Leisure Sawtry,Security,450
http://statistics.data.gov.uk/id/local-authority/12UE,Huntingdonshire District Council,19/12/2013,139769,671.03,Anglian Water,CR000071,One Leisure Sawtry,Water,432
http://statistics.data.gov.uk/id/local-authority/12UE,Huntingdonshire District Council,12/12/2013,139378,4257.78,Booker Cash And Carry,CR027611,One Leisure St Ives,Bar Provisions,558
http://statistics.data.gov.uk/id/local-authority/12UE,Huntingdonshire District Council,05/12/2013,138521,650.5,Booker Cash And Carry,CR027611,One Leisure St Ives,Bar Provisions,558
http://statistics.data.gov.uk/id/local-authority/12UE,Huntingdonshire District Council,12/12/2013,139334,3466.24,Heineken Uk Ltd,CR032678,One Leisure St Ives,Bar Provisions,558
http://statistics.data.gov.uk/id/local-authority/12UE,Huntingdonshire District Council,19/12/2013,139380,684.73,Heineken Uk Ltd,CR032678,One Leisure St Ives,Bar Provisions,558
http://statistics.data.gov.uk/id/local-authority/12UE,Huntingdonshire District Council,05/12/2013,137520,5022.88,Ecocleen Services Limited,CR406985,One Leisure St Ives,Building Cleaning Internal,440
http://statistics.data.gov.uk/id/local-authority/12UE,Huntingdonshire District Council,19/12/2013,139368,2502.71,Ecocleen Services Limited,CR406985,One Leisure St Ives,Building Cleaning Internal,440
http://statistics.data.gov.uk/id/local-authority/12UE,Huntingdonshire District Council,05/12/2013,137665,1750.19,Ecocleen Services Limited,CR406985,One Leisure St Ives,Building Cleaning Internal,440
http://statistics.data.gov.uk/id/local-authority/12UE,Huntingdonshire District Council,19/12/2013,139365,961.14,Ecocleen Services Limited,CR406985,One Leisure St Ives,Building Cleaning Internal,440
http://statistics.data.gov.uk/id/local-authority/12UE,Huntingdonshire District Council,05/12/2013,139340,-5022.88,Ecocleen Services Limited,CR406985,One Leisure St Ives,Building Cleaning Internal,440
http://statistics.data.gov.uk/id/local-authority/12UE,Huntingdonshire District Council,19/12/2013,140137,223.23,G4s Cashservices Uk Ltd,CR407133,One Leisure St Ives,Cash Collection,702
http://statistics.data.gov.uk/id/local-authority/12UE,Huntingdonshire District Council,12/12/2013,139378,551.29,Booker Cash And Carry,CR027611,One Leisure St Ives,Catering Materials,559
http://statistics.data.gov.uk/id/local-authority/12UE,Huntingdonshire District Council,05/12/2013,138521,294.27,Booker Cash And Carry,CR027611,One Leisure St Ives,Catering Materials,559
http://statistics.data.gov.uk/id/local-authority/12UE,Huntingdonshire District Council,12/12/2013,139378,82.14,Booker Cash And Carry,CR027611,One Leisure St Ives,Confectionery,572
http://statistics.data.gov.uk/id/local-authority/12UE,Huntingdonshire District Council,05/12/2013,138521,220.09,Booker Cash And Carry,CR027611,One Leisure St Ives,Confectionery,572
http://statistics.data.gov.uk/id/local-authority/12UE,Huntingdonshire District Council,19/12/2013,140088,518.4,Edf Energy Customer Field Services,CR477611,One Leisure St Ives,Electricity,420
http://statistics.data.gov.uk/id/local-authority/12UE,Huntingdonshire District Council,12/12/2013,139737,3565.2,E-On Energy,CR416430,One Leisure St Ives,Electricity,420
http://statistics.data.gov.uk/id/local-authority/12UE,Huntingdonshire District Council,19/12/2013,139478,7825.25,Haven Power Ltd,CR455940,One Leisure St Ives,Electricity,420
http://statistics.data.gov.uk/id/local-authority/12UE,Huntingdonshire District Council,05/12/2013,139389,486.26,Roger Wilson Electronics,CR028041,One Leisure St Ives,Entertainments Inc Cable Tv,744
http://statistics.data.gov.uk/id/local-authority/12UE,Huntingdonshire District Council,19/12/2013,140172,775,Starlite Roadshow,CR024127,One Leisure St Ives,Entertainments Inc Cable Tv,744
http://statistics.data.gov.uk/id/local-authority/12UE,Huntingdonshire District Council,05/12/2013,139347,1200,The Mesh Band,CR455753,One Leisure St Ives,Entertainments Inc Cable Tv,744
http://statistics.data.gov.uk/id/local-authority/12UE,Huntingdonshire District Council,19/12/2013,139701,714.43,Inflatable Testing & Repairing Services Ltd,CR410226,One Leisure St Ives,Equipment Maintenance,511
http://statistics.data.gov.uk/id/local-authority/12UE,Huntingdonshire District Council,12/12/2013,139384,1250,Lynx Bowling Services,CR455532,One Leisure St Ives,Equipment Maintenance,511
http://statistics.data.gov.uk/id/local-authority/12UE,Huntingdonshire District Council,12/12/2013,139700,72,Roger Wilson Electronics,CR028041,One Leisure St Ives,Equipment Purchases,500
http://statistics.data.gov.uk/id/local-authority/12UE,Huntingdonshire District Council,19/12/2013,139743,7013.17,E-On Energy,CR416430,One Leisure St Ives,Gas,421
http://statistics.data.gov.uk/id/local-authority/12UE,Huntingdonshire District Council,19/12/2013,139747,973.06,E-On Energy,CR416430,One Leisure St Ives,Gas,421
http://statistics.data.gov.uk/id/local-authority/12UE,Huntingdonshire District Council,12/12/2013,138512,2457.64,Abacus Lighting Limited,CR411323,One Leisure St Ives,Gen Building Mtce - Planned,304
http://statistics.data.gov.uk/id/local-authority/12UE,Huntingdonshire District Council,12/12/2013,138513,526.36,Abacus Lighting Limited,CR411323,One Leisure St Ives,Gen Building Mtce - Responsive,303
http://statistics.data.gov.uk/id/local-authority/12UE,Huntingdonshire District Council,05/12/2013,137967,1806.1,J Breheny Contractors Ltd,CR000314,One Leisure St Ives,Gen Building Mtce - Responsive,303
http://statistics.data.gov.uk/id/local-authority/12UE,Huntingdonshire District Council,05/12/2013,139389,443.7,Roger Wilson Electronics,CR028041,One Leisure St Ives,Gen Building Mtce - Responsive,303
http://statistics.data.gov.uk/id/local-authority/12UE,Huntingdonshire District Council,12/12/2013,139700,493.5,Roger Wilson Electronics,CR028041,One Leisure St Ives,Gen Building Mtce - Responsive,303
http://statistics.data.gov.uk/id/local-authority/12UE,Huntingdonshire District Council,05/12/2013,139333,1243.2,Affinity Nationwide Support Services,CR482612,One Leisure St Ives,Hired Staff,100
http://statistics.data.gov.uk/id/local-authority/12UE,Huntingdonshire District Council,05/12/2013,139332,666,Affinity Nationwide Support Services,CR482612,One Leisure St Ives,Hired Staff,100
http://statistics.data.gov.uk/id/local-authority/12UE,Huntingdonshire District Council,19/12/2013,139351,1656,Nfs Hospitality,CR480012,One Leisure St Ives,Licences,730
http://statistics.data.gov.uk/id/local-authority/12UE,Huntingdonshire District Council,12/12/2013,139378,454.81,Booker Cash And Carry,CR027611,One Leisure St Ives,Materials,550
http://statistics.data.gov.uk/id/local-authority/12UE,Huntingdonshire District Council,05/12/2013,138521,45.77,Booker Cash And Carry,CR027611,One Leisure St Ives,Materials,550
http://statistics.data.gov.uk/id/local-authority/12UE,Huntingdonshire District Council,12/12/2013,139921,671.94,Swimrite Suppliers Ltd (Srs Leisure),CR478711,One Leisure St Ives,Materials For Resale,570
http://statistics.data.gov.uk/id/local-authority/12UE,Huntingdonshire District Council,12/12/2013,139499,15.2,Orange Airtime,CR455799,One Leisure St Ives,Mobile Telephones & Radios,241
http://statistics.data.gov.uk/id/local-authority/12UE,Huntingdonshire District Council,19/12/2013,140169,562.76,Konica Minolta,CR478866,One Leisure St Ives,Other Office Equipment,209
http://statistics.data.gov.uk/id/local-authority/12UE,Huntingdonshire District Council,12/12/2013,139384,264,Lynx Bowling Services,CR455532,One Leisure St Ives,Plant & Equipment Maintenance,380
http://statistics.data.gov.uk/id/local-authority/12UE,Huntingdonshire District Council,19/12/2013,139349,194.4,Corporate Trends,CR415966,One Leisure St Ives,Protective Clothing & Uniforms,163
http://statistics.data.gov.uk/id/local-authority/12UE,Huntingdonshire District Council,05/12/2013,138269,0.01,Virgin Media Business,CR033120,One Leisure St Ives,Telephone Charges,240
http://statistics.data.gov.uk/id/local-authority/12UE,Huntingdonshire District Council,05/12/2013,138066,635.99,Glaxosmithkline,CR010424,One Leisure St Ives,Vending Materials,560
http://statistics.data.gov.uk/id/local-authority/12UE,Huntingdonshire District Council,19/12/2013,139844,1888.42,Ecocleen Services Limited,CR406985,One Leisure St Neots,Building Cleaning Internal,440
http://statistics.data.gov.uk/id/local-authority/12UE,Huntingdonshire District Council,19/12/2013,140137,446.44,G4s Cashservices Uk Ltd,CR407133,One Leisure St Neots,Cash Collection,702
http://statistics.data.gov.uk/id/local-authority/12UE,Huntingdonshire District Council,19/12/2013,139435,606,Brenntag Uk Ltd,CR015017,One Leisure St Neots,Chemicals,551
http://statistics.data.gov.uk/id/local-authority/12UE,Huntingdonshire District Council,05/12/2013,138238,501.5,Chemaide Limited,CR416597,One Leisure St Neots,Cleaning Materials,443
http://statistics.data.gov.uk/id/local-authority/12UE,Huntingdonshire District Council,12/12/2013,139739,9226.96,E-On Energy,CR416430,One Leisure St Neots,Electricity,420
http://statistics.data.gov.uk/id/local-authority/12UE,Huntingdonshire District Council,12/12/2013,138555,1279.5,Chubb Fire Ltd,CR478924,One Leisure St Neots,Equipment Maintenance,511
http://statistics.data.gov.uk/id/local-authority/12UE,Huntingdonshire District Council,19/12/2013,139753,3835.24,E-On Energy,CR416430,One Leisure St Neots,Gas,421
http://statistics.data.gov.uk/id/local-authority/12UE,Huntingdonshire District Council,19/12/2013,139752,563.08,E-On Energy,CR416430,One Leisure St Neots,Gas,421
http://statistics.data.gov.uk/id/local-authority/12UE,Huntingdonshire District Council,19/12/2013,139855,1196.89,Technical Surfaces Ltd,CR031941,One Leisure St Neots,Grounds Mtce Contractors,351
http://statistics.data.gov.uk/id/local-authority/12UE,Huntingdonshire District Council,19/12/2013,139856,986.89,Technical Surfaces Ltd,CR031941,One Leisure St Neots,Grounds Mtce Contractors,351
http://statistics.data.gov.uk/id/local-authority/12UE,Huntingdonshire District Council,19/12/2013,139852,539.62,Swimrite Suppliers Ltd (Srs Leisure),CR478711,One Leisure St Neots,Materials For Resale,570
http://statistics.data.gov.uk/id/local-authority/12UE,Huntingdonshire District Council,12/12/2013,139499,22.39,Orange Airtime,CR455799,One Leisure St Neots,Mobile Telephones & Radios,241
http://statistics.data.gov.uk/id/local-authority/12UE,Huntingdonshire District Council,12/12/2013,138566,1574.4,Hygromatic Gmbh,CR455529,One Leisure St Neots,Plant & Equipment Maintenance,380
http://statistics.data.gov.uk/id/local-authority/12UE,Huntingdonshire District Council,12/12/2013,138564,923.6,Hygromatic Gmbh,CR455529,One Leisure St Neots,Plant & Equipment Maintenance,380
http://statistics.data.gov.uk/id/local-authority/12UE,Huntingdonshire District Council,12/12/2013,139499,182.99,Orange Airtime,CR455799,Operations Mgt Units,Mobile Telephones & Radios,241
http://statistics.data.gov.uk/id/local-authority/12UE,Huntingdonshire District Council,12/12/2013,139932,1373.67,Swalec,CR407130,Parks & Open Spaces,Electricity,420
http://statistics.data.gov.uk/id/local-authority/12UE,Huntingdonshire District Council,19/12/2013,139272,600,G Ferrara Ltd,CR478949,Parks & Open Spaces,Gen Building Mtce - Responsive,303
http://statistics.data.gov.uk/id/local-authority/12UE,Huntingdonshire District Council,19/12/2013,140330,1161,Eibe Play Ltd,CR455051,Parks & Open Spaces,Playground Equipment,360
http://statistics.data.gov.uk/id/local-authority/12UE,Huntingdonshire District Council,12/12/2013,139634,4500,Chesmetalwork,CR453817,Parks & Open Spaces,Sitework,359
http://statistics.data.gov.uk/id/local-authority/12UE,Huntingdonshire District Council,05/12/2013,137970,3302.14,J Breheny Contractors Ltd,CR000314,Parks & Open Spaces,Sitework,359
http://statistics.data.gov.uk/id/local-authority/12UE,Huntingdonshire District Council,19/12/2013,139667,2146.93,Ecocleen Services Limited,CR406985,Pathfinder House Site,Building Cleaning Internal,440
http://statistics.data.gov.uk/id/local-authority/12UE,Huntingdonshire District Council,19/12/2013,139666,1356.6,Ecocleen Services Limited,CR406985,Pathfinder House Site,Building Cleaning Internal,440
http://statistics.data.gov.uk/id/local-authority/12UE,Huntingdonshire District Council,19/12/2013,139177,942,Ecocleen Services Limited,CR406985,Pathfinder House Site,Building Cleaning Internal,440
http://statistics.data.gov.uk/id/local-authority/12UE,Huntingdonshire District Council,19/12/2013,139695,634.68,Maskearaid Ind Supplies,CR033423,Pathfinder House Site,Cleaning Materials,443
http://statistics.data.gov.uk/id/local-authority/12UE,Huntingdonshire District Council,12/12/2013,139735,9236.58,E-On Energy,CR416430,Pathfinder House Site,Electricity,420
http://statistics.data.gov.uk/id/local-authority/12UE,Huntingdonshire District Council,19/12/2013,139742,2398.21,E-On Energy,CR416430,Pathfinder House Site,Gas,421
http://statistics.data.gov.uk/id/local-authority/12UE,Huntingdonshire District Council,19/12/2013,140113,712.63,B. S. Graves Electrical Ltd,CR000363,Pathfinder House Site,Gen Building Mtce - Responsive,303
http://statistics.data.gov.uk/id/local-authority/12UE,Huntingdonshire District Council,12/12/2013,139499,4.8,Orange Airtime,CR455799,Pathfinder House Site,Mobile Telephones & Radios,241
http://statistics.data.gov.uk/id/local-authority/12UE,Huntingdonshire District Council,19/12/2013,139626,2841.6,Burgin Ltd,CR482438,Pathfinder House Site,Plant & Equipment Maintenance,380
http://statistics.data.gov.uk/id/local-authority/12UE,Huntingdonshire District Council,19/12/2013,139623,900,Glasdon Uk Ltd,CR002827,Pathfinder House Site,Refuse Sacks,552
http://statistics.data.gov.uk/id/local-authority/12UE,Huntingdonshire District Council,05/12/2013,137986,568.8,J Breheny Contractors Ltd,CR000314,Pathfinder House Site,Sitework,359
http://statistics.data.gov.uk/id/local-authority/12UE,Huntingdonshire District Council,12/12/2013,139499,110.4,Orange Airtime,CR455799,Planning M U'S,Mobile Telephones & Radios,241
http://statistics.data.gov.uk/id/local-authority/12UE,Huntingdonshire District Council,19/12/2013,140344,3000,Carter Jonas,CR455383,Project Contributions,Consultants,711
http://statistics.data.gov.uk/id/local-authority/12UE,Huntingdonshire District Council,19/12/2013,140345,600,Carter Jonas,CR455383,Project Contributions,Consultants,711
http://statistics.data.gov.uk/id/local-authority/12UE,Huntingdonshire District Council,19/12/2013,139152,4886.39,Royal Mail,CR027083,Public Accountability,Postage,231
http://statistics.data.gov.uk/id/local-authority/12UE,Huntingdonshire District Council,19/12/2013,139669,1027,Ecocleen Services Limited,CR406985,Public Conveniences,Building Cleaning Internal,440
http://statistics.data.gov.uk/id/local-authority/12UE,Huntingdonshire District Council,19/12/2013,139670,658.1,Ecocleen Services Limited,CR406985,Public Conveniences,Building Cleaning Internal,440
http://statistics.data.gov.uk/id/local-authority/12UE,Huntingdonshire District Council,19/12/2013,139723,2923.63,Staffline Group,CR416827,Recycling,Hired Staff,100
http://statistics.data.gov.uk/id/local-authority/12UE,Huntingdonshire District Council,19/12/2013,138936,2090.34,Staffline Group,CR416827,Recycling,Hired Staff,100
http://statistics.data.gov.uk/id/local-authority/12UE,Huntingdonshire District Council,05/12/2013,138582,2067.59,Staffline Group,CR416827,Recycling,Hired Staff,100
http://statistics.data.gov.uk/id/local-authority/12UE,Huntingdonshire District Council,19/12/2013,140124,1945.3,Staffline Group,CR416827,Recycling,Hired Staff,100
http://statistics.data.gov.uk/id/local-authority/12UE,Huntingdonshire District Council,19/12/2013,139715,1848.6,Staffline Group,CR416827,Recycling,Hired Staff,100
http://statistics.data.gov.uk/id/local-authority/12UE,Huntingdonshire District Council,19/12/2013,137543,903.6,Direct Telecom Services Ltd,CR001981,Recycling,Mobile Telephones & Radios,241
http://statistics.data.gov.uk/id/local-authority/12UE,Huntingdonshire District Council,19/12/2013,140125,3986.29,Viridor Waste Management Ltd,CR482408,Recycling,Recycling Collections,747
http://statistics.data.gov.uk/id/local-authority/12UE,Huntingdonshire District Council,19/12/2013,139468,331.48,Bandvulc Tyres Ltd,CR406810,Recycling,Tyres,630
http://statistics.data.gov.uk/id/local-authority/12UE,Huntingdonshire District Council,12/12/2013,139638,1094.4,Morgan Hunt Public Uk Ltd,CR415693,Revenue Services Mus,Hired Staff,100
http://statistics.data.gov.uk/id/local-authority/12UE,Huntingdonshire District Council,05/12/2013,139137,1015.2,Morgan Hunt Public Uk Ltd,CR415693,Revenue Services Mus,Hired Staff,100
http://statistics.data.gov.uk/id/local-authority/12UE,Huntingdonshire District Council,19/12/2013,139904,118.8,Forum Events 2 Ltd,CR455599,Revenue Services Mus,Medical Fees,734
http://statistics.data.gov.uk/id/local-authority/12UE,Huntingdonshire District Council,12/12/2013,139499,62.4,Orange Airtime,CR455799,Revenue Services Mus,Mobile Telephones & Radios,241
http://statistics.data.gov.uk/id/local-authority/12UE,Huntingdonshire District Council,19/12/2013,139281,2252.52,T N T Post London Ltd,CR479965,Revenue Services Mus,Postage,231
http://statistics.data.gov.uk/id/local-authority/12UE,Huntingdonshire District Council,05/12/2013,139280,609.72,T N T Post London Ltd,CR479965,Revenue Services Mus,Postage,231
http://statistics.data.gov.uk/id/local-authority/12UE,Huntingdonshire District Council,19/12/2013,140141,699.81,T N T Post London Ltd,CR479965,Revenue Services Mus,Postage,231
http://statistics.data.gov.uk/id/local-authority/12UE,Huntingdonshire District Council,12/12/2013,138596,576.45,T N T Post London Ltd,CR479965,Revenue Services Mus,Postage,231
http://statistics.data.gov.uk/id/local-authority/12UE,Huntingdonshire District Council,05/12/2013,138444,547.49,T N T Post London Ltd,CR479965,Revenue Services Mus,Postage,231
http://statistics.data.gov.uk/id/local-authority/12UE,Huntingdonshire District Council,19/12/2013,139421,300,Public Networks Ltd,CR480920,Revenue Services Mus,Training - Other,136
http://statistics.data.gov.uk/id/local-authority/12UE,Huntingdonshire District Council,12/12/2013,140081,2272.62,Lex Autolease Ltd,CR410751,Revenue Services Mus,Vehicle Operating Lease,601
http://statistics.data.gov.uk/id/local-authority/12UE,Huntingdonshire District Council,12/12/2013,140079,-2272.62,Lex Autolease Ltd,CR410751,Revenue Services Mus,Vehicle Operating Lease,601
http://statistics.data.gov.uk/id/local-authority/12UE,Huntingdonshire District Council,05/12/2013,137640,21406.68,Rittal Limited,CR417141,Software Capital,Network Hardware,205
http://statistics.data.gov.uk/id/local-authority/12UE,Huntingdonshire District Council,19/12/2013,140123,1615.72,Staffline Group,CR416827,Street Cleaning,Hired Staff,100
http://statistics.data.gov.uk/id/local-authority/12UE,Huntingdonshire District Council,05/12/2013,138577,1077.14,Staffline Group,CR416827,Street Cleaning,Hired Staff,100
http://statistics.data.gov.uk/id/local-authority/12UE,Huntingdonshire District Council,19/12/2013,138926,866.09,Staffline Group,CR416827,Street Cleaning,Hired Staff,100
http://statistics.data.gov.uk/id/local-authority/12UE,Huntingdonshire District Council,19/12/2013,139725,866.09,Staffline Group,CR416827,Street Cleaning,Hired Staff,100
http://statistics.data.gov.uk/id/local-authority/12UE,Huntingdonshire District Council,19/12/2013,139717,858.82,Staffline Group,CR416827,Street Cleaning,Hired Staff,100
http://statistics.data.gov.uk/id/local-authority/12UE,Huntingdonshire District Council,19/12/2013,139716,756.92,Staffline Group,CR416827,Street Cleaning,Hired Staff,100
http://statistics.data.gov.uk/id/local-authority/12UE,Huntingdonshire District Council,19/12/2013,139726,749.64,Staffline Group,CR416827,Street Cleaning,Hired Staff,100
http://statistics.data.gov.uk/id/local-authority/12UE,Huntingdonshire District Council,19/12/2013,138925,640.46,Staffline Group,CR416827,Street Cleaning,Hired Staff,100
http://statistics.data.gov.uk/id/local-authority/12UE,Huntingdonshire District Council,05/12/2013,138576,538.57,Staffline Group,CR416827,Street Cleaning,Hired Staff,100
http://statistics.data.gov.uk/id/local-authority/12UE,Huntingdonshire District Council,05/12/2013,138013,2194.26,Breheny Contractors Ltd,CR027653,Street Cleaning,Litter Bins,520
http://statistics.data.gov.uk/id/local-authority/12UE,Huntingdonshire District Council,05/12/2013,138014,626.22,Breheny Contractors Ltd,CR027653,Street Cleaning,Litter Bins,520
http://statistics.data.gov.uk/id/local-authority/12UE,Huntingdonshire District Council,19/12/2013,138875,467.64,Pristine Condition,CR482653,Street Cleaning,Training - Operational,131
http://statistics.data.gov.uk/id/local-authority/12UE,Huntingdonshire District Council,19/12/2013,139468,28.92,Bandvulc Tyres Ltd,CR406810,Street Cleaning,Tyres,630
http://statistics.data.gov.uk/id/local-authority/12UE,Huntingdonshire District Council,19/12/2013,139871,594,Ian'S Tyre & Exhaust Centre,CR405836,Street Cleaning,Tyres,630
http://statistics.data.gov.uk/id/local-authority/12UE,Huntingdonshire District Council,12/12/2013,138578,1564.56,Dennis Eagle Ltd,CR000200,Street Cleaning,Vehicle Parts & Fittings,625
http://statistics.data.gov.uk/id/local-authority/12UE,Huntingdonshire District Council,05/12/2013,138621,1759.03,Johnston Engineering Ltd,CR029831,Street Cleaning,Vehicle Parts & Fittings,625
http://statistics.data.gov.uk/id/local-authority/12UE,Huntingdonshire District Council,12/12/2013,138629,1183.44,Johnston Engineering Ltd,CR029831,Street Cleaning,Vehicle Parts & Fittings,625
http://statistics.data.gov.uk/id/local-authority/12UE,Huntingdonshire District Council,19/12/2013,139362,820.85,Johnston Engineering Ltd,CR029831,Street Cleaning,Vehicle Parts & Fittings,625
http://statistics.data.gov.uk/id/local-authority/12UE,Huntingdonshire District Council,19/12/2013,138632,3235.33,J Breheny Contractors Ltd,CR000314,Street Naming,Signs Erecting & Removal,361
http://statistics.data.gov.uk/id/local-authority/12UE,Huntingdonshire District Council,19/12/2013,139475,2775.24,J Breheny Contractors Ltd,CR000314,Street Naming,Signs Erecting & Removal,361
http://statistics.data.gov.uk/id/local-authority/12UE,Huntingdonshire District Council,19/12/2013,140201,1702.68,Cambridgeshire County Council,CR006678,Trade Refuse,Waste Disposal,763
http://statistics.data.gov.uk/id/local-authority/12UE,Huntingdonshire District Council,12/12/2013,138511,1443.44,Cambridgeshire County Council,CR006678,Trade Refuse,Waste Disposal,763
http://statistics.data.gov.uk/id/local-authority/12UE,Huntingdonshire District Council,12/12/2013,138426,844.8,Adc East Anglia Limited,CR410308,Watercourses,Drains & Sewers,321
http://statistics.data.gov.uk/id/local-authority/12UE,Huntingdonshire District Council,19/12/2013,139876,3479.29,J Breheny Contractors Ltd,CR000314,Watercourses,Sitework,359
http://statistics.data.gov.uk/id/local-authority/12UE,Huntingdonshire District Council,05/12/2013,137976,1835.68,J Breheny Contractors Ltd,CR000314,Watercourses,Sitework,359
http://statistics.data.gov.uk/id/local-authority/12UE,Huntingdonshire District Council,19/12/2013,559759,1200,North Kesteven District Council,CR477399,Building Control Other,Subcontractors,777
http://statistics.data.gov.uk/id/local-authority/12UE,Huntingdonshire District Council,12/12/2013,558713,5534,Ems Lifts Ltd,CR479724,Improvement Grants,Professional Fees,798
http://statistics.data.gov.uk/id/local-authority/12UE,Huntingdonshire District Council,12/12/2013,559513,1755.96,Berrymans Lace Mawer,CR409779,Insurance Premium Holding,Insurance Public Liability,160
http://statistics.data.gov.uk/id/local-authority/12UE,Huntingdonshire District Council,03/12/2013,559334,1020,2-3 Grays Inn Square,CR477575,Licences,Consultants,711
http://statistics.data.gov.uk/id/local-authority/12UE,Huntingdonshire District Council,19/12/2013,559360,28750,Rural Cambs Citzens Advice Bureau,CR455454,Miscellaneous Grants,Grants (Paid Out),800
http://statistics.data.gov.uk/id/local-authority/12UE,Huntingdonshire District Council,19/12/2013,559747,27167.52,Cambridgeshire County Council,CR006678,Pensions,Pension Early Retirements,151
http://statistics.data.gov.uk/id/local-authority/12UE,Huntingdonshire District Council,19/12/2013,559782,759,Irrv Services Limited,CR008937,Revenue Services Mus,Books & Publications,250
,,,,1058547.96,,,,,
